[Event "46th GER-ch Rapid 2020"]
[Site "Plochingen"]
[Date "2020.09.19"]
[Round "2.8"]
[White "Schenderowitsch, Michael"]
[Black "Stern, Rene"]
[Result "1/2-1/2"]
[ECO "D35"]
[WhiteElo "2346"]
[BlackElo "2517"]
[Annotator "RC"]
[PlyCount "37"]
[EventDate "2020.09.19"]
[EventType "swiss"]
[EventCountry "GER"]
[SourceTitle "playchess.com"]
[Source "ChessBase"]
[SourceQuality "1"]
[TimeControl "900+10"]

1. d4 {[%emt 0:00:00]} d5 {[%emt 0:00:00]} 2. c4 {[%emt 0:00:00]} e6 {[%emt 0:00:00]} 3. Nc3 {[%emt 0:00:00]} Nf6 {[%emt 0:00:00]} 4. cxd5 {[%emt 0:00:00]} exd5 {[%emt 0:00:00]} 5. Bg5 {[%emt 0:00:01]} c6 {[%emt 0:00:00]} 6. e3 {[%emt 0:00:09]} Be7 {[%emt 0:00:00]} 7. Bd3 {[%emt 0:00:04]} Nbd7 {[%emt 0:00:01]} 8. h3 {[%emt 0:00:22]} Ne4 {[%emt 0:01:31]} 9. Bxe7 {[%emt 0:00:03]} Qxe7 {[%emt 0:00:01]} 10. Bxe4 {[%emt 0:00:07]} dxe4 {[%emt 0:00:02]} 11. Qg4 {[%emt 0:00:03]} Nf6 {[%emt 0:00:03]} 12. Qxg7 {[%emt 0:00:05]} Rg8 {[%emt 0:00:01]} 13. Qh6 {[%emt 0:00:02]} Rxg2 {[%emt 0:00:25]} 14. Nge2 {[%emt 0:00:07]} Rg8 {[%emt 0:01:31]} 15. Qh4 {[%emt 0:04:38]} Bf5 {[%emt 0:00:58]} 16. Nf4 {[%emt 0:00:38]} Bg6 {[%emt 0:04:01]} 17. Rg1 {[%emt 0:00:58]} O-O-O {[%emt 0:01:41]} 18. O-O-O {[%emt 0:00:05]} Rge8 {[%emt 0:00:18]} 19. Qg5 {[%emt 0:02:58]} 1/2-1/2

[Event "46th GER-ch Rapid 2020"]
[Site "Plochingen"]
[Date "2020.09.19"]
[Round "2.9"]
[White "Siebrecht, Sebastian"]
[Black "Wendler, David"]
[Result "1/2-1/2"]
[ECO "B36"]
[WhiteElo "2418"]
[BlackElo "2249"]
[Annotator "ChessBase"]
[PlyCount "130"]
[EventDate "2020.09.19"]
[EventType "swiss"]
[EventCountry "GER"]
[SourceTitle "playchess.com"]
[Source "ChessBase"]
[SourceQuality "1"]
[TimeControl "900+10"]

1. c4 {[%emt 0:00:00]} c5 {[%emt 0:00:00]} 2. Nf3 {[%emt 0:00:00]} g6 {[%emt 0:00:04]} 3. d4 {[%emt 0:00:50]} cxd4 {[%emt 0:00:08]} 4. Nxd4 {[%emt 0:00:02]} Nc6 {[%emt 0:01:03]} 5. e4 {[%emt 0:00:34]} Nf6 {[%emt 0:00:04]} 6. Nc3 {[%emt 0:00:07]} Nxd4 {[%emt 0:00:15]} 7. Qxd4 {[%emt 0:00:03]} d6 {[%emt 0:00:02]} 8. Be2 {[%emt 0:00:45]} Bg7 {[%emt 0:00:02]} 9. O-O {[%emt 0:00:04]} O-O {[%emt 0:00:05]} 10. Bg5 {[%emt 0:00:37]} h6 {[%emt 0:03:12]} 11. Bh4 {[%emt 0:00:02]} g5 {[%emt 0:01:41]} 12. Bg3 {[%emt 0:00:02]} Nh5 {[%emt 0:00:22]} 13. Qd2 {[%emt 0:00:03]} Nxg3 {[%emt 0:00:05]} 14. hxg3 {[%emt 0:00:02]} Be6 {[%emt 0:00:23]} 15. Rac1 {[%emt 0:00:08]} Rc8 {[%emt 0:00:34]} 16. b3 {[%emt 0:00:03]} Qa5 {[%emt 0:00:39]} 17. Rfd1 {[%emt 0:00:03]} Rfd8 {[%emt 0:01:41]} 18. Qe3 {[%emt 0:02:23]} Bxc3 {[%emt 0:01:12]} 19. Qxc3 {[%emt 0:00:36]} Qxc3 {[%emt 0:00:28]} 20. Rxc3 {[%emt 0:00:01]} b5 {[%emt 0:00:14]} 21. Rdc1 {[%emt 0:00:02]} b4 {[%emt 0:00:09]} 22. Re3 {[%emt 0:00:23]} Rc5 {[%emt 0:00:08]} 23. f4 {[%emt 0:00:49]} Kg7 {[%emt 0:00:21]} 24. Rd1 {[%emt 0:00:31]} f6 {[%emt 0:02:40]} 25. e5 {[%emt 0:01:51]} fxe5 {[%emt 0:00:03]} 26. fxe5 {[%emt 0:00:02]} d5 {[%emt 0:00:03]} 27. Red3 {[%emt 0:02:32]} d4 {[%emt 0:00:01]} 28. Rxd4 {[%emt 0:00:14]} Rxd4 {[%emt 0:00:01]} 29. Rxd4 {[%emt 0:00:02]} Rxe5 {[%emt 0:00:01]} 30. Kf2 {[%emt 0:01:13]} Bf5 {[%emt 0:00:21]} 31. Bd3 {[%emt 0:00:56]} Kf6 {[%emt 0:01:21]} 32. g4 {[%emt 0:01:30]} Bxd3 {[%emt 0:01:39]} 33. Rxd3 {[%emt 0:00:02]} Re4 {[%emt 0:00:02]} 34. Kf3 {[%emt 0:01:07]} Rf4+ {[%emt 0:00:04]} 35. Kg3 {[%emt 0:00:01]} e5 {[%emt 0:00:04]} 36. Rd6+ {[%emt 0:00:18]} Ke7 {[%emt 0:00:43]} 37. Rxh6 {[%emt 0:00:03]} e4 {[%emt 0:00:01]} 38. Rh1 {[%emt 0:00:59]} Kd6 {[%emt 0:00:03]} 39. Rd1+ {[%emt 0:00:04]} Ke6 {[%emt 0:00:29]} 40. Rd8 {[%emt 0:00:31]} Kf7 {[%emt 0:00:48]} 41. Rd5 {[%emt 0:00:55]} e3 {[%emt 0:00:14]} 42. Re5 {[%emt 0:00:04]} Rf2 {[%emt 0:00:02]} 43. Rxe3 {[%emt 0:00:11]} Rxa2 {[%emt 0:00:02]} 44. Kf3 {[%emt 0:00:20]} a5 {[%emt 0:00:20]} 45. Re5 {[%emt 0:00:23]} Kf6 {[%emt 0:00:11]} 46. Rf5+ {[%emt 0:00:06]} Kg6 {[%emt 0:00:02]} 47. Rb5 {[%emt 0:00:05]} Rb2 {[%emt 0:00:02]} 48. Rxa5 {[%emt 0:00:12]} Rxb3+ {[%emt 0:00:01]} 49. Ke4 {[%emt 0:00:02]} Rc3 {[%emt 0:00:43]} 50. Ra6+ {[%emt 0:00:17]} Kf7 {[%emt 0:00:12]} 51. Kd5 {[%emt 0:00:14]} b3 {[%emt 0:00:04]} 52. Rb6 {[%emt 0:00:19]} Ke7 {[%emt 0:00:14]} 53. c5 {[%emt 0:00:11]} Kd7 {[%emt 0:00:11]} 54. Rb7+ {[%emt 0:00:16]} Kc8 {[%emt 0:00:02]} 55. c6 {[%emt 0:00:25]} Rd3+ {[%emt 0:00:03]} 56. Ke4 {[%emt 0:00:17]} Rc3 {[%emt 0:00:21]} 57. Kd4 {[%emt 0:00:13]} Rg3 {[%emt 0:00:07]} 58. Kc5 {[%emt 0:00:18]} Rxg4 {[%emt 0:00:14]} 59. Rxb3 {[%emt 0:00:04]} Rxg2 {[%emt 0:00:02]} 60. Kb6 {[%emt 0:00:15]} g4 {[%emt 0:00:22]} 61. Re3 {[%emt 0:00:13]} Rb2+ {[%emt 0:00:02]} 62. Kc5 {[%emt 0:00:02]} Rc2+ {[%emt 0:00:07]} 63. Kd5 {[%emt 0:00:04]} Rd2+ {[%emt 0:00:03]} 64. Kc5 {[%emt 0:00:22]} Rc2+ {[%emt 0:00:02]} 65. Kd6 {[%emt 0:00:02]} Rd2+ {[%emt 0:00:02]} 1/2-1/2

[Event "46th GER-ch Rapid 2020"]
[Site "Plochingen"]
[Date "2020.09.19"]
[Round "2.10"]
[White "Neukirchner, Pascal"]
[Black "Langrock, Hannes"]
[Result "1-0"]
[ECO "A80"]
[WhiteElo "2259"]
[BlackElo "2352"]
[Annotator "ChessBase"]
[PlyCount "101"]
[EventDate "2020.09.19"]
[EventType "swiss"]
[EventCountry "GER"]
[SourceTitle "playchess.com"]
[Source "ChessBase"]
[SourceQuality "1"]
[TimeControl "900+10"]

1. d4 {[%emt 0:00:00]} f5 {[%emt 0:00:00]} 2. Bg5 {[%emt 0:00:01]} g6 {[%emt 0:00:00]} 3. Nc3 {[%emt 0:00:01]} Bg7 {[%emt 0:00:00]} 4. e3 {[%emt 0:00:07]} d5 {[%emt 0:01:24]} 5. h4 {[%emt 0:00:35]} c6 {[%emt 0:01:55]} 6. Bd3 {[%emt 0:00:59]} Nh6 {[%emt 0:00:41]} 7. Qf3 {[%emt 0:05:33]} Nf7 {[%emt 0:00:35]} 8. Qg3 {[%emt 0:00:12]} Nd7 {[%emt 0:04:44]} 9. Nf3 {[%emt 0:00:43]} Nf6 {[%emt 0:00:33]} 10. h5 {[%emt 0:02:38]} Nxh5 {[%emt 0:01:37]} 11. Rxh5 {[%emt 0:00:02]} gxh5 {[%emt 0:00:02]} 12. Bxe7 {[%emt 0:01:23]} Kxe7 {[%emt 0:00:49]} 13. Qxg7 {[%emt 0:00:08]} Qg8 {[%emt 0:01:42]} 14. Qxg8 {[%emt 0:00:02]} Rxg8 {[%emt 0:00:01]} 15. g3 {[%emt 0:00:01]} Be6 {[%emt 0:00:28]} 16. Ke2 {[%emt 0:00:19]} Ng5 {[%emt 0:00:36]} 17. Nxg5 {[%emt 0:00:59]} Rxg5 {[%emt 0:00:02]} 18. Rh1 {[%emt 0:00:14]} Kf6 {[%emt 0:00:24]} 19. Kf1 {[%emt 0:00:37]} Bf7 {[%emt 0:00:06]} 20. Ne2 {[%emt 0:00:02]} b6 {[%emt 0:00:14]} 21. Nf4 {[%emt 0:00:09]} Rd8 {[%emt 0:00:31]} 22. Be2 {[%emt 0:00:10]} a5 {[%emt 0:00:18]} 23. Bxh5 {[%emt 0:00:04]} Bxh5 {[%emt 0:00:15]} 24. Nxh5+ {[%emt 0:00:01]} Kf7 {[%emt 0:00:04]} 25. Nf4 {[%emt 0:00:05]} h5 {[%emt 0:00:44]} 26. Nd3 {[%emt 0:00:57]} Kf6 {[%emt 0:00:08]} 27. c3 {[%emt 0:00:51]} Rgg8 {[%emt 0:00:30]} 28. Ne5 {[%emt 0:00:16]} c5 {[%emt 0:00:19]} 29. Rxh5 {[%emt 0:00:45]} Rh8 {[%emt 0:00:11]} 30. Nd7+ {[%emt 0:00:07]} Ke6 {[%emt 0:00:14]} 31. Rxh8 {[%emt 0:00:02]} Rxh8 {[%emt 0:00:01]} 32. Nxb6 {[%emt 0:00:02]} cxd4 {[%emt 0:00:19]} 33. exd4 {[%emt 0:00:01]} Rh1+ {[%emt 0:00:06]} 34. Ke2 {[%emt 0:00:06]} Rb1 {[%emt 0:00:22]} 35. Na4 {[%emt 0:00:01]} Kd6 {[%emt 0:00:21]} 36. Ke3 {[%emt 0:00:09]} Kc6 {[%emt 0:00:22]} 37. Kf4 {[%emt 0:00:12]} Kb5 {[%emt 0:00:04]} 38. b3 {[%emt 0:00:01]} Ra1 {[%emt 0:00:15]} 39. Kxf5 {[%emt 0:00:10]} Rxa2 {[%emt 0:00:01]} 40. f4 {[%emt 0:00:01]} Rxa4 {[%emt 0:00:17]} 41. bxa4+ {[%emt 0:00:03]} Kxa4 {[%emt 0:00:01]} 42. g4 {[%emt 0:00:09]} Kb3 {[%emt 0:00:06]} 43. g5 {[%emt 0:00:01]} a4 {[%emt 0:00:01]} 44. g6 {[%emt 0:00:01]} a3 {[%emt 0:00:00]} 45. g7 {[%emt 0:00:00]} a2 {[%emt 0:00:01]} 46. g8=Q {[%emt 0:00:03]} a1=Q {[%emt 0:00:02]} 47. Qxd5+ {[%emt 0:00:16]} Kxc3 {[%emt 0:00:02]} 48. Qe5 {[%emt 0:00:09]} Qb1+ {[%emt 0:00:12]} 49. Kg5 {[%emt 0:00:23]} Qg1+ {[%emt 0:00:04]} 50. Kf6 {[%emt 0:00:01]} Kd3 {[%emt 0:00:15]} 51. d5 {[%emt 0:00:04]} 1-0

[Event "46th GER-ch Rapid 2020"]
[Site "Plochingen"]
[Date "2020.09.19"]
[Round "3.1"]
[White "Rosner, Jonas"]
[Black "Richter, Christian"]
[Result "1-0"]
[ECO "D02"]
[WhiteElo "2433"]
[BlackElo "2348"]
[Annotator "ChessBase"]
[PlyCount "85"]
[EventDate "2020.09.19"]
[EventType "swiss"]
[EventCountry "GER"]
[SourceTitle "playchess.com"]
[Source "ChessBase"]
[SourceQuality "1"]
[TimeControl "900+10"]

1. d4 {[%emt 0:00:00]} d5 {[%emt 0:00:00]} 2. Nf3 {[%emt 0:00:00]} a6 {[%emt 0:00:28]} 3. g3 {[%emt 0:00:13]} Nf6 {[%emt 0:01:02]} 4. Bg2 {[%emt 0:00:03]} e6 {[%emt 0:01:01]} 5. O-O {[%emt 0:00:12]} Nbd7 {[%emt 0:01:27]} 6. c4 {[%emt 0:01:11]} dxc4 {[%emt 0:01:35]} 7. Nbd2 {[%emt 0:01:10]} Nb6 {[%emt 0:00:37]} 8. Qc2 {[%emt 0:01:32]} Be7 {[%emt 0:05:11]} 9. Nxc4 {[%emt 0:02:25]} Nxc4 {[%emt 0:00:03]} 10. Qxc4 {[%emt 0:00:02]} O-O {[%emt 0:00:06]} 11. Qc2 {[%emt 0:01:01]} Nd5 {[%emt 0:02:41]} 12. Rd1 {[%emt 0:02:09]} a5 {[%emt 0:01:20]} 13. a3 {[%emt 0:01:38]} Ra6 {[%emt 0:00:35]} 14. e4 {[%emt 0:00:52]} Nf6 {[%emt 0:00:03]} 15. Bf4 {[%emt 0:00:39]} c6 {[%emt 0:00:20]} 16. Ne5 {[%emt 0:00:52]} Nd7 {[%emt 0:00:26]} 17. Nd3 {[%emt 0:00:55]} Qb6 {[%emt 0:00:32]} 18. Rac1 {[%emt 0:00:40]} Bf6 {[%emt 0:00:16]} 19. Bd6 {[%emt 0:00:43]} Re8 {[%emt 0:00:02]} 20. Nc5 {[%emt 0:00:20]} Ra8 {[%emt 0:00:03]} 21. h4 {[%emt 0:00:35]} Nxc5 {[%emt 0:00:13]} 22. Bxc5 {[%emt 0:00:17]} Qc7 {[%emt 0:00:04]} 23. Qb3 {[%emt 0:00:27]} a4 {[%emt 0:00:03]} 24. Qb4 {[%emt 0:00:08]} Qa5 {[%emt 0:00:02]} 25. Qc4 {[%emt 0:00:16]} Bd7 {[%emt 0:00:07]} 26. Rc2 {[%emt 0:00:09]} h6 {[%emt 0:00:03]} 27. Kh2 {[%emt 0:00:03]} Rec8 {[%emt 0:00:04]} 28. h5 {[%emt 0:00:08]} b6 {[%emt 0:00:03]} 29. e5 {[%emt 0:00:23]} bxc5 {[%emt 0:00:24]} 30. exf6 {[%emt 0:00:03]} cxd4 {[%emt 0:00:04]} 31. Rxd4 {[%emt 0:00:12]} Qxh5+ {[%emt 0:00:40]} 32. Rh4 {[%emt 0:00:02]} Qg5 {[%emt 0:00:08]} 33. fxg7 {[%emt 0:00:10]} e5 {[%emt 0:00:04]} 34. Bf3 {[%emt 0:00:32]} Be6 {[%emt 0:00:27]} 35. Qc5 {[%emt 0:00:15]} Qxg7 {[%emt 0:00:12]} 36. Re2 {[%emt 0:00:19]} f6 {[%emt 0:00:08]} 37. Ree4 {[%emt 0:00:06]} Kh7 {[%emt 0:00:24]} 38. Qd6 {[%emt 0:00:14]} Bd5 {[%emt 0:00:09]} 39. Reg4 {[%emt 0:00:05]} Qf7 {[%emt 0:00:04]} 40. Bd1 {[%emt 0:00:13]} Bb3 {[%emt 0:00:13]} 41. Be2 {[%emt 0:00:10]} Bc2 {[%emt 0:00:03]} 42. Qd2 {[%emt 0:00:06]} Bg6 {[%emt 0:00:04]} 43. Qxh6+ {[%emt 0:00:02]} 1-0

[Event "46th GER-ch Rapid 2020"]
[Site "Plochingen"]
[Date "2020.09.19"]
[Round "3.2"]
[White "Schmaltz, Roland"]
[Black "Richter, Nils"]
[Result "1/2-1/2"]
[ECO "B48"]
[WhiteElo "2449"]
[BlackElo "2307"]
[Annotator "ChessBase"]
[PlyCount "67"]
[EventDate "2020.09.19"]
[EventType "swiss"]
[EventCountry "GER"]
[SourceTitle "playchess.com"]
[Source "ChessBase"]
[SourceQuality "1"]
[TimeControl "900+10"]

1. e4 {[%emt 0:00:00]} c5 {[%emt 0:00:00]} 2. Nf3 {[%emt 0:00:00]} e6 {[%emt 0:00:00]} 3. d4 {[%emt 0:00:00]} cxd4 {[%emt 0:00:00]} 4. Nxd4 {[%emt 0:00:00]} Nc6 {[%emt 0:00:00]} 5. Nc3 {[%emt 0:00:00]} Qc7 {[%emt 0:00:00]} 6. Be3 {[%emt 0:00:17]} a6 {[%emt 0:00:00]} 7. Qf3 {[%emt 0:00:26]} Nf6 {[%emt 0:00:00]} 8. O-O-O {[%emt 0:00:26]} Ne5 {[%emt 0:00:02]} 9. Qg3 {[%emt 0:00:12]} b5 {[%emt 0:00:02]} 10. f4 {[%emt 0:00:29]} Neg4 11. Bd2 {[%emt 0:03:30]} h5 {[%emt 0:00:38]} 12. h3 {[%emt 0:00:23]} Nh6 {[%emt 0:00:44]} 13. Bd3 {[%emt 0:00:14]} b4 {[%emt 0:00:50]} 14. Na4 {[%emt 0:00:19]} Bb7 {[%emt 0:00:37]} 15. Rhe1 {[%emt 0:00:18]} Rc8 {[%emt 0:04:20]} 16. e5 {[%emt 0:02:54]} Nd5 {[%emt 0:00:09]} 17. f5 {[%emt 0:00:30]} Nxf5 {[%emt 0:02:11]} 18. Nxf5 {[%emt 0:01:53]} exf5 {[%emt 0:00:03]} 19. Bxf5 {[%emt 0:01:07]} g6 {[%emt 0:03:02]} 20. Be4 {[%emt 0:01:19]} Nb6 {[%emt 0:00:33]} 21. Qb3 {[%emt 0:01:07]} Bxe4 {[%emt 0:00:20]} 22. Rxe4 {[%emt 0:00:05]} Nxa4 {[%emt 0:01:42]} 23. Qxa4 {[%emt 0:00:03]} a5 {[%emt 0:00:14]} 24. Bg5 {[%emt 0:01:02]} Qc6 {[%emt 0:01:01]} 25. Qxc6 {[%emt 0:00:10]} Rxc6 {[%emt 0:00:06]} 26. Rd5 {[%emt 0:00:10]} Be7 {[%emt 0:01:36]} 27. Be3 {[%emt 0:00:08]} a4 {[%emt 0:00:32]} 28. Ra5 {[%emt 0:00:12]} O-O {[%emt 0:00:02]} 29. Bd4 {[%emt 0:00:39]} Rfc8 {[%emt 0:00:17]} 30. Re2 {[%emt 0:00:02]} b3 {[%emt 0:00:22]} 31. axb3 {[%emt 0:00:10]} axb3 {[%emt 0:00:02]} 32. c3 {[%emt 0:00:06]} Bc5 {[%emt 0:00:16]} 33. Bxc5 {[%emt 0:00:34]} Rxc5 {[%emt 0:00:01]} 34. Ra3 {[%emt 0:00:03]} 1/2-1/2

[Event "46th GER-ch Rapid 2020"]
[Site "Plochingen"]
[Date "2020.09.19"]
[Round "3.3"]
[White "Gschnitzer, Oswald"]
[Black "Dobrikov, Marco"]
[Result "0-1"]
[ECO "A34"]
[WhiteElo "2373"]
[BlackElo "2332"]
[Annotator "ChessBase"]
[PlyCount "108"]
[EventDate "2020.09.19"]
[EventType "swiss"]
[EventCountry "GER"]
[SourceTitle "playchess.com"]
[Source "ChessBase"]
[SourceQuality "1"]
[TimeControl "900+10"]

1. Nf3 {[%emt 0:00:00]} c5 {[%emt 0:00:00]} 2. c4 {[%emt 0:00:00]} Nc6 {[%emt 0:00:01]} 3. Nc3 {[%emt 0:00:06]} e5 {[%emt 0:00:06]} 4. e3 {[%emt 0:00:17]} Nf6 {[%emt 0:00:05]} 5. d4 {[%emt 0:00:04]} cxd4 {[%emt 0:00:08]} 6. exd4 {[%emt 0:00:00]} e4 {[%emt 0:00:00]} 7. Ne5 {[%emt 0:00:09]} d6 8. Nxc6 {[%emt 0:00:10]} bxc6 {[%emt 0:00:17]} 9. Bg5 {[%emt 0:01:55]} Bf5 {[%emt 0:01:00]} 10. Qa4 {[%emt 0:00:12]} Qb6 {[%emt 0:00:22]} 11. Bxf6 {[%emt 0:00:53]} gxf6 {[%emt 0:00:02]} 12. Nd5 {[%emt 0:00:12]} Qb7 {[%emt 0:00:19]} 13. Be2 {[%emt 0:00:53]} Bg7 {[%emt 0:01:22]} 14. O-O {[%emt 0:00:34]} Bd7 {[%emt 0:00:02]} 15. Nf4 {[%emt 0:00:16]} f5 {[%emt 0:02:11]} 16. Qa3 {[%emt 0:09:03]} Qc7 17. Rad1 {[%emt 0:00:00]} O-O {[%emt 0:09:12]} 18. Nh5 {[%emt 0:00:00]} Kh8 {[%emt 0:00:01]} 19. Nxg7 {[%emt 0:00:00]} Kxg7 {[%emt 0:00:02]} 20. Qg3+ {[%emt 0:00:00]} Kh8 {[%emt 0:00:02]} 21. c5 {[%emt 0:00:00]} Rg8 {[%emt 0:00:32]} 22. cxd6 {[%emt 0:00:00]} Qd8 {[%emt 0:01:12]} 23. Qe5+ {[%emt 0:00:00]} Rg7 {[%emt 0:00:16]} 24. g3 {[%emt 0:00:00]} Qg5 {[%emt 0:01:10]} 25. f4 {[%emt 0:01:13]} Qd8 {[%emt 0:00:13]} 26. Bc4 {[%emt 0:00:25]} Kg8 {[%emt 0:00:01]} 27. d5 {[%emt 0:00:10]} c5 {[%emt 0:00:04]} 28. Rc1 {[%emt 0:00:08]} Rg6 {[%emt 0:00:04]} 29. Qe7 {[%emt 0:00:59]} Qxe7 {[%emt 0:00:27]} 30. dxe7 {[%emt 0:00:01]} Rd6 {[%emt 0:00:05]} 31. Bb3 {[%emt 0:00:17]} Rc8 {[%emt 0:00:01]} 32. Rc3 {[%emt 0:00:11]} a5 {[%emt 0:00:12]} 33. a3 {[%emt 0:00:22]} a4 {[%emt 0:00:03]} 34. Ba2 {[%emt 0:00:02]} f6 {[%emt 0:00:05]} 35. Rfc1 {[%emt 0:00:02]} Kf7 {[%emt 0:00:01]} 36. Rxc5 {[%emt 0:00:02]} Rxc5 {[%emt 0:00:05]} 37. Rxc5 {[%emt 0:00:01]} Kxe7 {[%emt 0:00:01]} 38. Kf2 {[%emt 0:00:13]} Rb6 {[%emt 0:00:02]} 39. Rc2 {[%emt 0:00:02]} Kd6 {[%emt 0:00:00]} 40. Ke3 {[%emt 0:00:02]} Bb5 {[%emt 0:00:23]} 41. Kd4 {[%emt 0:01:12]} Bd7 {[%emt 0:00:04]} 42. g4 {[%emt 0:00:30]} fxg4 {[%emt 0:00:23]} 43. Kxe4 {[%emt 0:00:01]} f5+ {[%emt 0:00:01]} 44. Kd4 {[%emt 0:00:01]} h5 {[%emt 0:00:00]} 45. Bc4 {[%emt 0:00:51]} h4 {[%emt 0:00:21]} 46. Re2 {[%emt 0:00:04]} Rb8 {[%emt 0:00:07]} 47. Bd3 {[%emt 0:00:07]} Rh8 {[%emt 0:00:32]} 48. Rg2 {[%emt 0:00:10]} h3 {[%emt 0:00:10]} 49. Rg3 {[%emt 0:00:02]} Rb8 {[%emt 0:00:02]} 50. Kc3 {[%emt 0:00:46]} Rb3+ {[%emt 0:00:06]} 51. Kc2 {[%emt 0:00:02]} Bb5 {[%emt 0:00:33]} 52. Bxf5 {[%emt 0:00:39]} Rxg3 53. hxg3 {[%emt 0:00:01]} h2 {[%emt 0:00:02]} 54. Be4 {[%emt 0:00:03]} Bc4 {[%emt 0:00:02]} 0-1

[Event "46th GER-ch Rapid 2020"]
[Site "Plochingen"]
[Date "2020.09.19"]
[Round "3.5"]
[White "Vatter, Hans-Joachim"]
[Black "Petkidis, Anthony"]
[Result "0-1"]
[ECO "B53"]
[WhiteElo "2221"]
[BlackElo "2406"]
[Annotator "ChessBase"]
[PlyCount "94"]
[EventDate "2020.09.19"]
[EventType "swiss"]
[EventCountry "GER"]
[SourceTitle "playchess.com"]
[Source "ChessBase"]
[SourceQuality "1"]
[TimeControl "900+10"]

1. e4 {[%emt 0:00:00]} c5 {[%emt 0:00:00]} 2. Nf3 {[%emt 0:00:00]} d6 {[%emt 0:00:00]} 3. d4 {[%emt 0:00:00]} cxd4 {[%emt 0:00:00]} 4. Qxd4 {[%emt 0:00:01]} a6 {[%emt 0:00:43]} 5. Bg5 {[%emt 0:00:02]} Nc6 {[%emt 0:00:06]} 6. Qd2 {[%emt 0:00:02]} Nf6 {[%emt 0:00:49]} 7. Bxf6 {[%emt 0:00:22]} gxf6 {[%emt 0:00:02]} 8. Nc3 {[%emt 0:00:13]} e6 {[%emt 0:00:18]} 9. O-O-O {[%emt 0:00:27]} h5 {[%emt 0:01:19]} 10. Kb1 {[%emt 0:00:02]} Qc7 {[%emt 0:00:02]} 11. Nd4 {[%emt 0:01:04]} Bd7 {[%emt 0:00:43]} 12. f4 {[%emt 0:00:36]} O-O-O {[%emt 0:01:46]} 13. Be2 {[%emt 0:01:47]} Kb8 {[%emt 0:00:15]} 14. Rhe1 {[%emt 0:00:59]} h4 {[%emt 0:01:14]} 15. Nxc6+ {[%emt 0:00:34]} Bxc6 {[%emt 0:00:24]} 16. Bf3 {[%emt 0:00:06]} Bh6 {[%emt 0:00:11]} 17. g3 {[%emt 0:02:01]} f5 {[%emt 0:00:15]} 18. Qd3 {[%emt 0:02:53]} fxe4 {[%emt 0:00:15]} 19. Bxe4 {[%emt 0:00:03]} d5 {[%emt 0:00:11]} 20. Bf3 {[%emt 0:00:21]} Bg7 {[%emt 0:00:13]} 21. Ne2 {[%emt 0:01:36]} hxg3 {[%emt 0:00:24]} 22. hxg3 {[%emt 0:00:03]} Bb5 {[%emt 0:03:03]} 23. Qe3 {[%emt 0:00:04]} Rc8 {[%emt 0:00:04]} 24. c3 {[%emt 0:00:08]} Bc4 {[%emt 0:01:09]} 25. Rh1 {[%emt 0:01:33]} Qa5 {[%emt 0:01:44]} 26. Nc1 {[%emt 0:00:02]} Qc7 {[%emt 0:00:36]} 27. Rxh8 {[%emt 0:00:14]} Rxh8 {[%emt 0:00:08]} 28. Rh1 {[%emt 0:00:02]} Rxh1 {[%emt 0:00:21]} 29. Bxh1 {[%emt 0:00:01]} Qd6 {[%emt 0:00:09]} 30. Bf3 {[%emt 0:01:26]} d4 {[%emt 0:01:52]} 31. cxd4 {[%emt 0:01:08]} Bxd4 {[%emt 0:00:03]} 32. Qe4 {[%emt 0:00:06]} Qb6 {[%emt 0:00:08]} 33. Nb3 {[%emt 0:00:34]} Bxb3 {[%emt 0:00:26]} 34. axb3 {[%emt 0:00:01]} Qxb3 {[%emt 0:00:18]} 35. Qxd4 {[%emt 0:00:24]} Qxf3 {[%emt 0:00:02]} 36. Qd7 {[%emt 0:00:52]} Qe4+ {[%emt 0:00:26]} 37. Ka2 {[%emt 0:00:12]} Qd5+ {[%emt 0:00:57]} 38. Qxd5 {[%emt 0:00:01]} exd5 {[%emt 0:00:01]} 39. g4 {[%emt 0:00:01]} Kc7 {[%emt 0:00:02]} 40. Kb3 {[%emt 0:00:01]} Kd6 {[%emt 0:00:14]} 41. Kc3 {[%emt 0:00:02]} a5 {[%emt 0:00:12]} 42. Kd4 {[%emt 0:00:02]} b5 {[%emt 0:00:21]} 43. g5 {[%emt 0:01:20]} Ke6 {[%emt 0:00:15]} 44. Kc5 {[%emt 0:00:02]} Kf5 {[%emt 0:00:22]} 45. Kxb5 {[%emt 0:00:02]} d4 {[%emt 0:00:05]} 46. Kc4 {[%emt 0:00:23]} Kxf4 {[%emt 0:00:02]} 47. Kxd4 {[%emt 0:00:30]} Kxg5 {[%emt 0:00:02]} 0-1